[Event "*** Titled Tuesday Blitz"]
[Site "Chess.com"]
[Date "2019.05.07"]
[Round "2"]
[White "Michael_Scofield01"]
[Black "hellokostya"]
[Result "1-0"]
[WhiteElo "2694"]
[BlackElo "2529"]
[TimeControl "180+2"]
[EndTime "13:25:49 PDT"]
[Termination "Michael_Scofield01 won by resignation"]

1. e4 {[%clk 0:03:01.9]} 1... c5 {[%clk 0:02:58.6]} 2. Nf3 {[%clk 0:03:00.2]}
2... e6 {[%clk 0:02:59.9]} 3. d4 {[%clk 0:03:00.9]} 3... cxd4 {[%clk 0:03:01.8]}
4. Nxd4 {[%clk 0:03:02.8]} 4... Nc6 {[%clk 0:03:03.3]} 5. Nc3 {[%clk 0:03:03.7]}
5... Qc7 {[%clk 0:03:04.1]} 6. Nxc6 {[%clk 0:03:03]} 6... bxc6 {[%clk
0:03:03.3]} 7. Bd3 {[%clk 0:03:03.7]} 7... d5 {[%clk 0:03:03.2]} 8. O-O {[%clk
0:03:02.9]} 8... Nf6 {[%clk 0:03:04.4]} 9. Re1 {[%clk 0:03:02]} 9... Be7 {[%clk
0:03:05.5]} 10. e5 {[%clk 0:02:37.8]} 10... Nd7 {[%clk 0:03:06.2]} 11. Qg4
{[%clk 0:02:38.4]} 11... g6 {[%clk 0:03:00.2]} 12. Qg3 {[%clk 0:02:38.9]} 12...
O-O {[%clk 0:02:55]} 13. Bg5 {[%clk 0:02:36.2]} 13... Bxg5 {[%clk 0:02:44.6]}
14. Qxg5 {[%clk 0:02:38.1]} 14... Rb8 {[%clk 0:02:45.2]} 15. b3 {[%clk
0:02:28.3]} 15... Qa5 {[%clk 0:02:32.5]} 16. Ne2 {[%clk 0:02:23.8]} 16... Ba6
{[%clk 0:02:32.9]} 17. Nd4 {[%clk 0:02:17.4]} 17... Qb6 {[%clk 0:02:03.2]} 18.
Nf3 {[%clk 0:02:15.9]} 18... Bxd3 {[%clk 0:02:03.2]} 19. cxd3 {[%clk 0:02:10]}
19... Rfc8 {[%clk 0:01:52]} 20. Qh6 {[%clk 0:02:09.3]} 20... Nf8 {[%clk
0:01:48.1]} 21. Ng5 {[%clk 0:02:10]} 21... Qd4 {[%clk 0:01:37.9]} 22. Rad1
{[%clk 0:02:10.2]} 22... a5 {[%clk 0:01:33.6]} 23. Re3 {[%clk 0:02:06]} 23...
Qg4 {[%clk 0:00:53.7]} 24. Rde1 {[%clk 0:01:35.9]} 24... Qh5 {[%clk 0:00:53.1]}
25. Qxh5 {[%clk 0:01:34]} 25... gxh5 {[%clk 0:00:55]} 26. Rf3 {[%clk 0:01:30.2]}
26... Rc7 {[%clk 0:00:52.2]} 27. d4 {[%clk 0:01:24.2]} 27... a4 {[%clk
0:00:52.1]} 28. Rc3 {[%clk 0:01:18.6]} 28... axb3 {[%clk 0:00:50.2]} 29. axb3
{[%clk 0:01:16.5]} 29... Rb4 {[%clk 0:00:50.8]} 30. Nf3 {[%clk 0:01:13]} 30...
Ng6 {[%clk 0:00:47.7]} 31. g3 {[%clk 0:01:10.4]} 31... h4 {[%clk 0:00:46.3]} 32.
Ra1 {[%clk 0:01:08]} 32... hxg3 {[%clk 0:00:46.9]} 33. hxg3 {[%clk 0:01:02.7]}
33... Kg7 {[%clk 0:00:47.7]} 34. Ra8 {[%clk 0:00:57.5]} 34... h6 {[%clk
0:00:46.5]} 35. Ra4 {[%clk 0:00:53.5]} 35... Rcb7 {[%clk 0:00:42.8]} 36. Rxb4
{[%clk 0:00:48.9]} 36... Rxb4 {[%clk 0:00:44.7]} 37. Kf1 {[%clk 0:00:50.5]}
37... Ne7 {[%clk 0:00:44]} 38. Ke2 {[%clk 0:00:44.4]} 38... Kg6 {[%clk
0:00:40.6]} 39. Kd3 {[%clk 0:00:40.1]} 39... Kh5 {[%clk 0:00:39.4]} 40. Kc2
{[%clk 0:00:37.2]} 40... Kg4 {[%clk 0:00:35.8]} 41. Kb2 {[%clk 0:00:34.3]} 41...
Kh3 {[%clk 0:00:29.5]} 42. Rc1 {[%clk 0:00:24.5]} 42... Kg2 {[%clk 0:00:28.3]}
43. Ne1+ {[%clk 0:00:19.4]} 43... Kh3 {[%clk 0:00:29.5]} 44. Kc3 {[%clk
0:00:13.9]} 44... Rb8 {[%clk 0:00:26.7]} 45. Nd3 {[%clk 0:00:14.6]} 45... Kg2
{[%clk 0:00:25.1]} 46. Ra1 {[%clk 0:00:10.4]} 46... Rb7 {[%clk 0:00:12.8]} 47.
Ra8 {[%clk 0:00:11.2]} 47... Nf5 {[%clk 0:00:13.2]} 48. Rh8 {[%clk 0:00:11.7]}
48... Kf1 {[%clk 0:00:13.9]} 49. g4 {[%clk 0:00:12]} 49... Nh4 {[%clk
0:00:11.7]} 50. Rxh6 {[%clk 0:00:13.4]} 50... Nf3 {[%clk 0:00:13.4]} 51. Rf6
{[%clk 0:00:13.5]} 51... Ke2 {[%clk 0:00:14]} 52. Nc5 {[%clk 0:00:08.8]} 52...
Ra7 {[%clk 0:00:13.4]} 53. g5 {[%clk 0:00:06.5]} 53... Ra1 {[%clk 0:00:07.5]}
54. g6 {[%clk 0:00:06.2]} 54... fxg6 {[%clk 0:00:07.7]} 55. Nxe6 {[%clk
0:00:07.5]} 55... Rc1+ {[%clk 0:00:09]} 56. Kb4 {[%clk 0:00:08.5]} 56... Kd3
{[%clk 0:00:05.2]} 57. Rxf3+ {[%clk 0:00:09]} 57... Ke4 {[%clk 0:00:06.6]} 58.
Re3+ {[%clk 0:00:10.1]} 58... Kf5 {[%clk 0:00:07.7]} 59. Nc5 {[%clk 0:00:11.7]}
1-0

[Event "*** Titled Tuesday Blitz"]
[Site "Chess.com"]
[Date "2019.05.07"]
[Round "2"]
[White "elefante33"]
[Black "severomorskij"]
[Result "0-1"]
[WhiteElo "2556"]
[BlackElo "2773"]
[TimeControl "180+2"]
[EndTime "13:26:08 PDT"]
[Termination "severomorskij won by checkmate"]

1. e4 {[%clk 0:03:01.9]} 1... c5 {[%clk 0:03:00.5]} 2. Nf3 {[%clk 0:03:02.4]}
2... Nc6 {[%clk 0:03:01.7]} 3. Bb5 {[%clk 0:03:02.5]} 3... d6 {[%clk 0:03:02.8]}
4. O-O {[%clk 0:03:02.4]} 4... Bd7 {[%clk 0:03:03.8]} 5. Re1 {[%clk 0:03:02.5]}
5... Nf6 {[%clk 0:03:04.2]} 6. c3 {[%clk 0:03:02.1]} 6... a6 {[%clk 0:03:05.3]}
7. Bf1 {[%clk 0:03:03]} 7... Bg4 {[%clk 0:03:05.5]} 8. h3 {[%clk 0:03:04.2]}
8... Bxf3 {[%clk 0:03:05.1]} 9. Qxf3 {[%clk 0:03:06.1]} 9... e6 {[%clk
0:03:06.5]} 10. d3 {[%clk 0:03:03.2]} 10... Be7 {[%clk 0:03:06]} 11. Qd1 {[%clk
0:03:03.7]} 11... O-O {[%clk 0:02:58.3]} 12. Nd2 {[%clk 0:03:04.4]} 12... d5
{[%clk 0:02:57]} 13. a4 {[%clk 0:03:00.7]} 13... b5 {[%clk 0:02:50.2]} 14. axb5
{[%clk 0:02:58.6]} 14... axb5 {[%clk 0:02:51.3]} 15. Rxa8 {[%clk 0:02:59.7]}
15... Qxa8 {[%clk 0:02:53.2]} 16. exd5 {[%clk 0:02:55.3]} 16... Nxd5 {[%clk
0:02:50.4]} 17. g3 {[%clk 0:02:55.7]} 17... Rd8 {[%clk 0:02:48.7]} 18. Bg2
{[%clk 0:02:55.9]} 18... Qa6 {[%clk 0:02:42.1]} 19. h4 {[%clk 0:02:48.1]} 19...
b4 {[%clk 0:02:39.6]} 20. Ne4 {[%clk 0:02:15]} 20... bxc3 {[%clk 0:02:30.5]} 21.
bxc3 {[%clk 0:02:15.6]} 21... Nf6 {[%clk 0:02:22.6]} 22. Bf1 {[%clk 0:01:47.3]}
22... h6 {[%clk 0:01:50.6]} 23. Nxf6+ {[%clk 0:01:30]} 23... Bxf6 {[%clk
0:01:49.8]} 24. Bd2 {[%clk 0:01:17.7]} 24... Qa2 {[%clk 0:01:32.8]} 25. Re4
{[%clk 0:01:16]} 25... Ne5 {[%clk 0:01:24.6]} 26. Be3 {[%clk 0:01:04.9]} 26...
Qd5 {[%clk 0:01:10.7]} 27. Qe2 {[%clk 0:00:27.9]} 27... c4 {[%clk 0:00:47.8]}
28. Rxe5 {[%clk 0:00:19.8]} 28... Qxe5 {[%clk 0:00:35.8]} 29. dxc4 {[%clk
0:00:16.2]} 29... Qxc3 {[%clk 0:00:35.6]} 30. Qg4 {[%clk 0:00:16]} 30... Kh8
{[%clk 0:00:30.9]} 31. Qe4 {[%clk 0:00:14.7]} 31... Qa1 {[%clk 0:00:27.3]} 32.
Kg2 {[%clk 0:00:14.4]} 32... Qa8 {[%clk 0:00:27.7]} 33. Qxa8 {[%clk 0:00:14]}
33... Rxa8 {[%clk 0:00:29.6]} 34. h5 {[%clk 0:00:14.6]} 34... Rc8 {[%clk
0:00:29.7]} 35. g4 {[%clk 0:00:15.1]} 35... Kg8 {[%clk 0:00:29.2]} 36. Kf3
{[%clk 0:00:11.5]} 36... Be7 {[%clk 0:00:28.5]} 37. Bd3 {[%clk 0:00:11.5]} 37...
Bc5 {[%clk 0:00:28.4]} 38. Bxc5 {[%clk 0:00:06.9]} 38... Rxc5 {[%clk 0:00:28.6]}
39. Be2 {[%clk 0:00:07.8]} 39... Kf8 {[%clk 0:00:28.4]} 40. Ke4 {[%clk
0:00:08.4]} 40... Ke7 {[%clk 0:00:29.1]} 41. f4 {[%clk 0:00:07.8]} 41... Kd6
{[%clk 0:00:29.8]} 42. Kd4 {[%clk 0:00:08.5]} 42... f6 {[%clk 0:00:23.3]} 43.
Ke4 {[%clk 0:00:08]} 43... f5+ {[%clk 0:00:21.3]} 44. gxf5 {[%clk 0:00:08.4]}
44... Rxf5 {[%clk 0:00:21.4]} 45. Bg4 {[%clk 0:00:08.5]} 45... Ra5 {[%clk
0:00:22.2]} 46. Be2 {[%clk 0:00:10.1]} 46... Ra2 {[%clk 0:00:20.6]} 47. Bg4
{[%clk 0:00:10.5]} 47... Rg2 {[%clk 0:00:20.1]} 48. Bf3 {[%clk 0:00:10.6]} 48...
Rg3 {[%clk 0:00:21]} 49. Ke3 {[%clk 0:00:11]} 49... e5 {[%clk 0:00:19.7]} 50.
fxe5+ {[%clk 0:00:08.2]} 50... Kxe5 {[%clk 0:00:20.4]} 51. c5 {[%clk 0:00:08.8]}
51... Rg1 {[%clk 0:00:20.3]} 52. c6 {[%clk 0:00:09.6]} 52... Rc1 {[%clk
0:00:20.9]} 53. Kd3 {[%clk 0:00:09.8]} 53... Rc5 {[%clk 0:00:21.2]} 54. Ke3
{[%clk 0:00:10.2]} 54... Rc3+ {[%clk 0:00:21.8]} 55. Ke2 {[%clk 0:00:08.4]}
55... Kd4 {[%clk 0:00:21.1]} 56. Kf2 {[%clk 0:00:07.3]} 56... Ke5 {[%clk
0:00:20.9]} 57. Kg3 {[%clk 0:00:07.3]} 57... Kf5 {[%clk 0:00:17.3]} 58. Kf2
{[%clk 0:00:07.3]} 58... Kf4 {[%clk 0:00:18.5]} 59. Bd5 {[%clk 0:00:08.2]} 59...
Rc2+ {[%clk 0:00:19.6]} 60. Ke1 {[%clk 0:00:08.4]} 60... Ke3 {[%clk 0:00:20.6]}
61. Kf1 {[%clk 0:00:09.3]} 61... Rc5 {[%clk 0:00:19.8]} 62. Bg2 {[%clk
0:00:02.5]} 62... Rc1# {[%clk 0:00:18.4]} 0-1

[Event "*** Titled Tuesday Blitz"]
[Site "Chess.com"]
[Date "2019.05.07"]
[Round "2"]
[White "AndrewMcStone"]
[Black "FearNoEvil12"]
[Result "1-0"]
[WhiteElo "2118"]
[BlackElo "2005"]
[TimeControl "180+2"]
[EndTime "13:26:19 PDT"]
[Termination "AndrewMcStone won by resignation"]

1. d4 {[%clk 0:03:01.9]} 1... b5 {[%clk 0:03:00.1]} 2. e4 {[%clk 0:02:52.1]}
2... a6 {[%clk 0:03:01.5]} 3. Bd3 {[%clk 0:02:45.9]} 3... Bb7 {[%clk 0:03:03]}
4. Nf3 {[%clk 0:02:37.7]} 4... e6 {[%clk 0:03:04.4]} 5. O-O {[%clk 0:02:38.4]}
5... Nf6 {[%clk 0:03:04]} 6. Qe2 {[%clk 0:02:38.9]} 6... d6 {[%clk 0:03:03.5]}
7. Bg5 {[%clk 0:02:33.2]} 7... h6 {[%clk 0:03:04.6]} 8. Bh4 {[%clk 0:02:32.7]}
8... g5 {[%clk 0:03:05.2]} 9. Bg3 {[%clk 0:02:33.8]} 9... Nbd7 {[%clk
0:03:05.8]} 10. e5 {[%clk 0:02:30.7]} 10... Nd5 {[%clk 0:03:06.2]} 11. Re1
{[%clk 0:02:03.7]} 11... Rg8 {[%clk 0:03:04.9]} 12. exd6 {[%clk 0:01:46.4]}
12... cxd6 {[%clk 0:03:04.1]} 13. c4 {[%clk 0:01:46.4]} 13... bxc4 {[%clk
0:03:03.1]} 14. Bxc4 {[%clk 0:01:47.3]} 14... h5 {[%clk 0:03:04.3]} 15. h4
{[%clk 0:01:39.4]} 15... gxh4 {[%clk 0:03:04]} 16. Bxh4 {[%clk 0:01:35.1]} 16...
Be7 {[%clk 0:03:05.4]} 17. Bxe7 {[%clk 0:01:33.4]} 17... Qxe7 {[%clk 0:03:07.3]}
18. Nc3 {[%clk 0:01:32.9]} 18... Rxg2+ {[%clk 0:03:06.3]} 19. Kf1 {[%clk
0:01:21.8]} 19... Nf4 {[%clk 0:03:06.7]} 20. Qe3 {[%clk 0:01:14.8]} 20... Rg4
{[%clk 0:03:05.6]} 21. d5 {[%clk 0:00:50.6]} 21... e5 {[%clk 0:02:46.7]} 22. Ne4
{[%clk 0:00:36.6]} 22... f5 {[%clk 0:02:30]} 23. Ng3 {[%clk 0:00:27.1]} 23...
Qf7 {[%clk 0:02:12.8]} 24. Nd4 {[%clk 0:00:19.7]} 24... h4 {[%clk 0:01:59.4]}
25. Ngxf5 {[%clk 0:00:20.7]} 25... Qg6 {[%clk 0:01:54.8]} 26. f3 {[%clk
0:00:12.7]} 26... Rg5 {[%clk 0:01:36.8]} 27. Nxd6+ {[%clk 0:00:11.4]} 27... Kf8
{[%clk 0:01:30.3]} 28. Nxb7 {[%clk 0:00:10.2]} 28... h3 {[%clk 0:01:07.1]} 29.
Ne6+ {[%clk 0:00:08.1]} 29... Ke7 {[%clk 0:00:58.5]} 30. Nxg5 {[%clk 0:00:08.2]}
30... Qxg5 {[%clk 0:00:59.7]} 31. d6+ {[%clk 0:00:08.3]} 31... Kf8 {[%clk
0:00:55.5]} 32. Qf2 {[%clk 0:00:07.7]} 32... Kg7 {[%clk 0:00:45.4]} 33. Re4
{[%clk 0:00:05.5]} 33... Rh8 {[%clk 0:00:43.2]} 34. Qh2 {[%clk 0:00:04.3]} 34...
Qg2+ {[%clk 0:00:41.1]} 35. Qxg2+ {[%clk 0:00:05]} 35... hxg2+ {[%clk
0:00:41.4]} 36. Kf2 {[%clk 0:00:06.6]} 36... Rh1 {[%clk 0:00:40.5]} 37. Rg1
{[%clk 0:00:07.6]} 37... Nh3+ {[%clk 0:00:21.5]} 38. Kxg2 {[%clk 0:00:07.9]}
38... Rxg1+ {[%clk 0:00:23.4]} 39. Kxh3 {[%clk 0:00:08.6]} 39... Rb1 {[%clk
0:00:22.9]} 40. b3 {[%clk 0:00:07.9]} 40... Rb2 {[%clk 0:00:22.7]} 41. Rg4+
{[%clk 0:00:08.9]} 41... Kf6 {[%clk 0:00:23.1]} 42. Rg2 {[%clk 0:00:10.5]} 42...
Rb1 {[%clk 0:00:23]} 43. Bd3 {[%clk 0:00:08.8]} 43... Rd1 {[%clk 0:00:21.4]} 44.
Rg6+ {[%clk 0:00:09.6]} 44... Kf7 {[%clk 0:00:21.3]} 45. Be4 {[%clk 0:00:10.8]}
45... Nf6 {[%clk 0:00:20.4]} 46. Rh6 {[%clk 0:00:06.2]} 46... Rh1+ {[%clk
0:00:18.9]} 47. Kg3 {[%clk 0:00:06]} 47... Rxh6 {[%clk 0:00:20.5]} 48. Nc5
{[%clk 0:00:05.3]} 48... Nxe4+ {[%clk 0:00:21.2]} 49. Nxe4 {[%clk 0:00:06.3]}
49... Ke6 {[%clk 0:00:22]} 50. Kf2 {[%clk 0:00:07.3]} 50... Kd5 {[%clk
0:00:23.4]} 51. Ke3 {[%clk 0:00:08.5]} 51... Rh2 {[%clk 0:00:24.5]} 52. a4
{[%clk 0:00:06.9]} 52... Rb2 {[%clk 0:00:23.9]} 53. d7 {[%clk 0:00:07.5]} 53...
Rxb3+ {[%clk 0:00:20.3]} 54. Nc3+ {[%clk 0:00:07.3]} 54... Rxc3+ {[%clk
0:00:18.9]} 55. Kd2 {[%clk 0:00:07.2]} 55... Rxf3 {[%clk 0:00:18.3]} 56. d8=Q+
{[%clk 0:00:08.1]} 56... Ke4 {[%clk 0:00:20.2]} 57. Qa8+ {[%clk 0:00:08.5]}
57... Kf4 {[%clk 0:00:20.7]} 58. Qxa6 {[%clk 0:00:09.4]} 58... e4 {[%clk
0:00:20.8]} 59. Qf6+ {[%clk 0:00:09.4]} 59... Kg4 {[%clk 0:00:21.6]} 60. Qe6+
{[%clk 0:00:09.8]} 60... Kf4 {[%clk 0:00:22.4]} 61. a5 {[%clk 0:00:11.1]} 61...
Rd3+ {[%clk 0:00:21.6]} 62. Ke2 {[%clk 0:00:11.7]} 62... Re3+ {[%clk 0:00:20.2]}
63. Kd2 {[%clk 0:00:12.1]} 63... Rd3+ {[%clk 0:00:21.4]} 64. Kc2 {[%clk
0:00:13.5]} 64... Rg3 {[%clk 0:00:16.5]} 65. a6 {[%clk 0:00:13]} 65... e3 {[%clk
0:00:17.3]} 66. a7 {[%clk 0:00:13.9]} 66... Rg2+ {[%clk 0:00:16.9]} 67. Kd3
{[%clk 0:00:12.3]} 67... Rd2+ {[%clk 0:00:17.5]} 68. Kc3 {[%clk 0:00:13.6]}
68... Rd8 {[%clk 0:00:17.9]} 69. Qf6+ {[%clk 0:00:13.5]} 69... Ke4 {[%clk
0:00:19]} 70. Qxd8 {[%clk 0:00:15.1]} 1-0

[Event "*** Titled Tuesday Blitz"]
[Site "Chess.com"]
[Date "2019.05.07"]
[Round "2"]
[White "Ambitiousresolutions"]
[Black "Berardino"]
[Result "1-0"]
[WhiteElo "2698"]
[BlackElo "2498"]
[TimeControl "180+2"]
[EndTime "13:26:51 PDT"]
[Termination "Ambitiousresolutions won by resignation"]

1. e4 {[%clk 0:03:01.9]} 1... c5 {[%clk 0:03:00.3]} 2. Nf3 {[%clk 0:03:02.5]}
2... b6 {[%clk 0:03:01.5]} 3. d4 {[%clk 0:03:02.5]} 3... cxd4 {[%clk 0:03:03.4]}
4. Nxd4 {[%clk 0:03:04.3]} 4... Bb7 {[%clk 0:03:04.9]} 5. Bd3 {[%clk 0:03:04]}
5... Nc6 {[%clk 0:03:05.1]} 6. Nxc6 {[%clk 0:03:03.2]} 6... Bxc6 {[%clk
0:03:07]} 7. c4 {[%clk 0:03:02.5]} 7... e6 {[%clk 0:03:08.3]} 8. Qe2 {[%clk
0:03:01.5]} 8... Bc5 {[%clk 0:03:09]} 9. Nc3 {[%clk 0:03:01.1]} 9... Qh4 {[%clk
0:03:07.6]} 10. Be3 {[%clk 0:02:52.8]} 10... Nf6 {[%clk 0:03:08.2]} 11. g3
{[%clk 0:02:37.2]} 11... Qh5 {[%clk 0:02:41]} 12. Qxh5 {[%clk 0:02:35.1]} 12...
Nxh5 {[%clk 0:02:42.9]} 13. Ke2 {[%clk 0:02:32.4]} 13... Nf6 {[%clk 0:02:42.6]}
14. f3 {[%clk 0:02:31.7]} 14... d6 {[%clk 0:02:35.5]} 15. Bc2 {[%clk 0:02:16.4]}
15... Nd7 {[%clk 0:02:26.9]} 16. Ba4 {[%clk 0:02:07.8]} 16... Bxa4 {[%clk
0:02:26.6]} 17. Nxa4 {[%clk 0:02:09.7]} 17... Bxe3 {[%clk 0:02:22.7]} 18. Kxe3
{[%clk 0:02:10.4]} 18... Ke7 {[%clk 0:02:22.8]} 19. Rac1 {[%clk 0:02:09.3]}
19... Rhc8 {[%clk 0:02:23]} 20. Rhd1 {[%clk 0:02:08.9]} 20... a6 {[%clk
0:02:22.9]} 21. b3 {[%clk 0:02:02.6]} 21... Rc6 {[%clk 0:02:23]} 22. Nc3 {[%clk
0:01:52.8]} 22... Rac8 {[%clk 0:02:20.7]} 23. a4 {[%clk 0:01:49]} 23... Nf6
{[%clk 0:02:05.4]} 24. Rd3 {[%clk 0:01:42]} 24... Nd7 {[%clk 0:02:02.5]} 25. Rd2
{[%clk 0:01:39.4]} 25... Nf6 {[%clk 0:01:50.6]} 26. Rcd1 {[%clk 0:01:39.4]}
26... Ne8 {[%clk 0:01:47.8]} 27. Ne2 {[%clk 0:01:34.9]} 27... Rc5 {[%clk
0:01:44.2]} 28. Nc3 {[%clk 0:01:23.2]} 28... R5c6 {[%clk 0:01:40.2]} 29. h4
{[%clk 0:01:23]} 29... h5 {[%clk 0:01:40.4]} 30. Rd3 {[%clk 0:01:20.5]} 30... g6
{[%clk 0:01:41]} 31. Ne2 {[%clk 0:01:20]} 31... Rc5 {[%clk 0:01:37.9]} 32. Nc3
{[%clk 0:01:21]} 32... R5c6 {[%clk 0:01:38.7]} 33. Na2 {[%clk 0:01:14.1]} 33...
Rc5 {[%clk 0:01:33.1]} 34. Nb4 {[%clk 0:01:12.2]} 34... Ra8 {[%clk 0:01:30.7]}
35. R3d2 {[%clk 0:01:10]} 35... b5 {[%clk 0:01:17.6]} 36. Nd3 {[%clk 0:00:51.9]}
36... Rc7 {[%clk 0:01:12.7]} 37. Nb2 {[%clk 0:00:48.1]} 37... Rb8 {[%clk
0:01:05]} 38. cxb5 {[%clk 0:00:45.5]} 38... axb5 {[%clk 0:01:05]} 39. a5 {[%clk
0:00:47.1]} 39... Rc3+ {[%clk 0:00:57]} 40. Rd3 {[%clk 0:00:47.8]} 40... Rxd3+
{[%clk 0:00:56.8]} 41. Nxd3 {[%clk 0:00:49.7]} 41... Nc7 {[%clk 0:00:57.4]} 42.
Rc1 {[%clk 0:00:48.9]} 42... Na6 {[%clk 0:00:55.9]} 43. Rc6 {[%clk 0:00:46.1]}
43... Ra8 {[%clk 0:00:56]} 44. b4 {[%clk 0:00:41.6]} 44... Kd7 {[%clk
0:00:50.9]} 45. Rb6 {[%clk 0:00:42.1]} 45... Kc7 {[%clk 0:00:51.8]} 46. Rxb5
{[%clk 0:00:39.9]} 46... Nb8 {[%clk 0:00:35.4]} 47. e5 {[%clk 0:00:34.1]} 47...
Nd7 {[%clk 0:00:24.9]} 48. exd6+ {[%clk 0:00:33.6]} 48... Kc6 {[%clk 0:00:26.1]}
49. Rg5 {[%clk 0:00:29.5]} 49... Kxd6 {[%clk 0:00:26.6]} 50. Nc5 {[%clk
0:00:23.7]} 50... Nf6 {[%clk 0:00:23.2]} 51. Ne4+ {[%clk 0:00:20.6]} 51... Nxe4
{[%clk 0:00:24.3]} 52. Kxe4 {[%clk 0:00:22.5]} 52... f5+ {[%clk 0:00:09.7]} 53.
Ke3 {[%clk 0:00:22.4]} 53... Rb8 {[%clk 0:00:10.7]} 54. Rxg6 {[%clk 0:00:22.3]}
54... Rxb4 {[%clk 0:00:12.3]} 55. Rg8 {[%clk 0:00:20.1]} 55... Ra4 {[%clk
0:00:13.4]} 56. Ra8 {[%clk 0:00:19.6]} 56... Ke7 {[%clk 0:00:14.4]} 57. Ra7+
{[%clk 0:00:19.2]} 57... Kf6 {[%clk 0:00:15.6]} 58. Ra8 {[%clk 0:00:20.6]} 58...
Kg7 {[%clk 0:00:15]} 59. a6 {[%clk 0:00:21.9]} 59... Kf6 {[%clk 0:00:15.9]} 60.
Kd3 {[%clk 0:00:22]} 60... Ra3+ {[%clk 0:00:16.4]} 61. Ke2 {[%clk 0:00:22.6]}
61... Kg7 {[%clk 0:00:16.9]} 62. a7 {[%clk 0:00:24]} 62... Kh7 {[%clk
0:00:17.7]} 63. f4 {[%clk 0:00:24.1]} 63... Kg7 {[%clk 0:00:18.8]} 64. Kd2
{[%clk 0:00:25.5]} 64... Kh7 {[%clk 0:00:20.2]} 65. Kc2 {[%clk 0:00:26.9]} 65...
Kg7 {[%clk 0:00:21.7]} 66. Kb2 {[%clk 0:00:28.4]} 66... Ra6 {[%clk 0:00:22.3]}
67. Kc3 {[%clk 0:00:29.6]} 67... Ra1 {[%clk 0:00:22.5]} 68. Kc4 {[%clk
0:00:30.6]} 68... Ra2 {[%clk 0:00:21.6]} 69. Kc5 {[%clk 0:00:31.5]} 69... Ra6
{[%clk 0:00:21.5]} 70. Kb5 {[%clk 0:00:32.5]} 70... Ra1 {[%clk 0:00:22.5]} 71.
Kc6 {[%clk 0:00:34]} 71... Kh7 {[%clk 0:00:21]} 72. Kd7 {[%clk 0:00:34.7]} 72...
Ra6 {[%clk 0:00:21.5]} 73. Kc7 {[%clk 0:00:34.6]} 73... Ra1 {[%clk 0:00:21.5]}
74. Kd6 {[%clk 0:00:35.6]} 74... Ra6+ {[%clk 0:00:22.3]} 75. Kd7 {[%clk
0:00:37]} 75... Kg7 {[%clk 0:00:22.2]} 76. Ke7 {[%clk 0:00:38.4]} 76... Kh7
{[%clk 0:00:22.7]} 77. Kf7 {[%clk 0:00:39.4]} 77... Ra5 {[%clk 0:00:17.4]} 78.
Kxe6 {[%clk 0:00:38.7]} 78... Kg7 {[%clk 0:00:18.7]} 79. Rd8 {[%clk 0:00:36.7]}
79... Rxa7 {[%clk 0:00:19.4]} 80. Rd7+ {[%clk 0:00:38]} 80... Rxd7 {[%clk
0:00:20.7]} 81. Kxd7 {[%clk 0:00:39.9]} 81... Kh7 {[%clk 0:00:21.6]} 82. Kd6
{[%clk 0:00:41.8]} 82... Kh6 {[%clk 0:00:22.5]} 83. Ke6 {[%clk 0:00:43.7]} 83...
Kg6 {[%clk 0:00:23.6]} 84. Ke5 {[%clk 0:00:45.6]} 1-0